bitfinex-derivatives/quotes_ETHF0:USTF0_20250309
["timestamp","ask_amount","ask_price","bid_price","bid_amount"]
[1741534676764,0.94767,2110.8,2110.7,0.00710429]
[1741534677162,0.6043,2111.1,2110.7,0.00710429]
[1741534677467,0.94764,2110.9,2110.7,0.95479429]
[1741534677659,0.94764,2110.9,2110.8,0.6085]
[1741534679169,0.94767,2110.8,2110.7,0.00710429]
[1741534680964,2.15917,2110.8,2110.7,0.00710429]
[1741534681569,0.94785,2110.4,2110.3,3.2078]
[1741534684370,0.94794,2110.2,2110.1,0.00710429]
[1741534685667,3.8484,2110.4,2110.1,0.00710429]
[1741534685874,0.94794,2110.2,2110.1,0.00710429]
[1741534686866,0.6573,2110.2,2110.1,0.00710429]
[1741534687176,0.00710429,2110.6,2110.2,0.94791]
[1741534687378,0.00710429,2110.6,2110.2,1.59901]
[1741534687570,0.00710429,2110.6,2110.2,0.6511]
[1741534687871,0.94787,2110.4,2110.2,0.6511]
[1741534688377,0.94787,2110.4,2110.3,3.2078]
[1741534689373,0.00710429,2110.6,2110.3,7.2078]
[1741534689671,0.00710429,2110.6,2110.3,3.2078]
[1741534690178,0.00710429,2110.6,2110.5,0.94781]
[1741534690378,0.00710429,2110.6,2110.4,3.76272]
[1741534690681,0.00710429,2110.6,2110.5,0.94781]
[1741534690974,0.00710429,2110.6,2110.4,2.8149]
[1741534691279,0.94781,2110.5,2110.4,2.185]
[1741534691580,0.00710429,2110.6,2110.4,2.185]
[1741534691776,0.00710429,2110.6,2110.5,0.94781]
[1741534692380,0.94785,2110.4,2110.3,6.0067]
[1741534692680,0.94785,2110.4,2110.3,0.6139]
[1741534693478,3.67488429,2110.6,2110.1,0.00710429]
[1741534693678,0.94793,2110.3,2110.1,0.95507429]
[1741534694076,0.94788,2110.4,2110.2,0.94792]
[1741534694276,0.94788,2110.4,2110.3,3.2078]
[1741534694477,1.30540429,2110.6,2110.1,0.00710429]
[1741534694478,0.94794,2110.2,2110.1,0.00710429]
[1741534695084,1.30540429,2110.6,2110.1,0.00710429]
[1741534695283,0.94789,2110.4,2110.1,0.95504429]
[1741534695577,1.30540429,2110.6,2110.1,0.00710429]
[1741534695784,0.94794,2110.3,2110.1,0.00710429]
[1741534695983,0.94794,2110.3,2110.1,0.95508429]
[1741534696378,0.94791,2110.3,2110.1,0.95506429]
[1741534697580,1.30540429,2110.6,2110.1,0.00710429]
[1741534697787,0.94794,2110.2,2110.1,0.00710429]
[1741534699880,3.2078,2110.5,2110.1,0.00710429]
[1741534700086,0.94794,2110.2,2110.1,0.00710429]
[1741534700981,1.30540429,2110.6,2110.1,0.00710429]
[1741534701183,3.48940429,2110.6,2110.3,3.2078]
[1741534701383,0.94785,2110.4,2110.3,3.2078]
[1741534701689,0.94784,2110.5,2110.3,4.1557]
[1741534701889,1.30540429,2110.6,2110.3,3.8487]
[1741534702190,0.00710429,2110.6,2110.3,3.8487]
[1741534702579,0.94785,2110.4,2110.3,3.8487]
[1741534703179,0.00710429,2110.6,2110.3,4.79656]
[1741534703384,0.95488429,2110.6,2110.4,0.94783]
[1741534703580,0.00710429,2110.6,2110.3,3.8487]
[1741534703782,0.94785,2110.4,2110.3,3.8487]
[1741534703986,0.94785,2110.4,2110.3,3.2078]
[1741534705690,1.60574,2110.5,2110.3,4.1557]
[1741534705890,0.94785,2110.4,2110.3,3.2078]
[1741534706890,3.8043,2110.9,2110.3,3.2078]
[1741534707192,0.6505,2111.4,2110.6,3.2078]
[1741534707392,0.9476,2111.0,2110.9,3.2078]
[1741534707597,1.2865,2111.4,2110.9,3.2078]
[1741534707993,0.94758,2111.0,2110.9,3.2078]
[1741534708196,0.94758,2111.1,2110.9,3.2078]
[1741534708693,1.2865,2111.4,2111.0,0.94757]
[1741534709198,0.9475,2111.2,2110.9,4.52414344]
[1741534709386,0.9475,2111.2,2110.9,3.57654344]
[1741534709589,0.9475,2111.2,2111.0,0.94756]
[1741534709991,0.94748,2111.3,2111.0,0.94756]
[1741534710191,1.2865,2111.4,2110.9,3.2078]
[1741534710388,0.94756,2111.1,2110.9,3.2078]
[1741534710595,1.2865,2111.4,2110.9,3.2078]
[1741534710791,0.94756,2111.1,2110.9,4.15541]
[1741534711196,1.2865,2111.4,2110.9,3.2078]
[1741534711496,0.6237,2111.8,2111.2,3.2078]
[1741534711697,1.2635,2111.8,2111.5,3.2078]
[1741534712001,2.7845,2112.1,2111.5,3.2078]
[1741534712197,0.94718,2111.9,2111.8,3.2078]
[1741534712996,3.2078,2112.2,2111.8,3.2078]
[1741534713195,0.94716,2112.0,2111.8,4.155]
[1741534713791,3.4475,2112.3,2111.8,3.2078]
[1741534713993,0.94718,2111.9,2111.8,3.2078]
[1741534716601,3.2078,2112.2,2111.8,3.2078]
[1741534716801,1.2635,2112.3,2111.8,4.15501]
[1741534716802,0.94713,2112.1,2111.8,4.15501]
[1741534717300,0.94714,2112.0,2111.8,4.15501]
[1741534718099,1.2635,2112.3,2111.8,3.2078]
[1741534718296,1.2635,2112.3,2112.1,4.15487]
[1741534718602,1.2635,2112.3,2112.2,0.94705]
[1741534718802,0.6292,2112.3,2112.2,0.94705]
[1741534719303,0.6292,2112.3,2112.1,4.15486]
[1741534719605,1.5762,2112.3,2112.1,4.15487]
[1741534719804,1.5762,2112.3,2112.1,3.2078]
[1741534720201,0.6292,2112.3,2112.1,4.15488]
[1741534720404,1.57622,2112.3,2112.1,4.15488]
[1741534720597,1.57622,2112.3,2112.1,3.2078]
[1741534720794,1.57622,2112.3,2112.1,4.15488]
[1741534721203,0.94705,2112.2,2112.1,3.2078]
[1741534721402,0.6292,2112.3,2112.1,3.2078]
[1741534721403,1.57622,2112.3,2112.1,3.2078]
[1741534721705,1.57622,2112.3,2112.1,4.15487]
[1741534722099,0.6292,2112.3,2112.2,0.94705]
[1741534723101,0.6292,2112.3,2112.1,3.2078]
[1741534723102,0.6467,2112.4,2112.1,3.2078]
[1741534723303,0.6467,2112.4,2112.2,0.94701]
[1741534723304,1.59366,2112.4,2112.2,0.94701]
[1741534723499,1.59367,2112.4,2112.2,0.94703]
[1741534723700,1.59367,2112.4,2112.1,3.2078]
[1741534723701,0.6373,2112.7,2112.1,3.2078]
[1741534724007,0.94696,2112.4,2112.2,0.94702]
[1741534724205,0.6373,2112.7,2112.1,44.36492593]
[1741534724511,0.94687,2112.6,2112.5,3.2078]
[1741534725806,0.94696,2112.4,2112.3,0.00710429]
[1741534727110,0.94696,2112.4,2112.3,0.62570429]
[1741534727606,0.94696,2112.4,2112.3,0.00710429]
[1741534731114,0.94696,2112.4,2112.3,4.29e-06]
[1741534731411,0.94722,2111.8,2111.7,3.2078]
[1741534731908,0.94722,2111.9,2111.7,3.2078]
[1741534732212,2.181,2112.2,2111.7,3.2078]
[1741534732411,0.94722,2111.8,2111.7,3.2078]
[1741534734006,0.94727,2111.7,2111.6,0.00710429]
[1741534736108,2.20655,2111.8,2111.6,0.00710429]
[1741534736508,0.94727,2111.7,2111.6,0.00710429]
[1741534737416,0.94725,2111.8,2111.6,0.95440429]
[1741534737714,0.94727,2111.7,2111.6,0.60170429]
[1741534738415,0.94727,2111.7,2111.6,1.54901429]
[1741534738608,0.94727,2111.7,2111.6,0.60170429]
[1741534739311,0.6312,2111.9,2111.6,1.54900429]
[1741534739312,0.94724,2111.8,2111.6,1.54900429]
[1741534739512,0.00710429,2112.0,2111.9,0.94718]
[1741534742816,0.947,2112.3,2111.9,6.985]
[1741534743010,0.947,2112.3,2112.2,3.2078]
[1741534743204,1.2457,2112.6,2112.2,3.2078]
[1741534743719,0.94695,2112.5,2112.2,3.2078]
[1741534743911,0.94697,2112.4,2112.2,4.15481]
[1741534744111,0.947,2112.3,2112.2,3.2078]
[1741534745719,0.94695,2112.5,2112.3,0.94698]
[1741534746220,2.19259,2112.6,2112.4,0.94694]
[1741534746517,2.19259,2112.6,2112.4,1.55243]
[1741534746518,2.19258,2112.6,2112.4,1.55243]
[1741534746717,0.94683,2112.7,2112.5,4.15469]
[1741534747020,3.8022,2113.1,2112.5,3.2078]
[1741534747314,1.279,2113.2,2113.0,3.2078]
[1741534747519,0.94664,2113.1,2113.0,3.2078]
[1741534748120,1.279,2113.2,2113.0,3.2078]
[1741534748418,0.94664,2113.1,2113.0,3.2078]
[1741534748718,1.279,2113.2,2113.0,3.2078]
[1741534748922,1.57223,2113.2,2113.0,4.15446]
[1741534749219,0.9466,2113.2,2113.0,3.2078]
[1741534749416,1.279,2113.5,2113.1,0.94661]
[1741534749721,1.279,2113.5,2113.1,0.94662]
[1741534749918,0.94662,2113.2,2113.0,3.2078]
[1741534750116,0.94664,2113.1,2113.0,3.2078]
[1741534753620,0.94669,2113.0,2112.9,0.00710429]
[1741534755811,2.17049,2113.0,2112.9,0.00710429]
[1741534759922,2.17049,2113.0,2112.1,2.18]
[1741534759923,0.94707,2112.2,2112.1,2.18]
[1741534760825,3.8579,2112.5,2112.0,3.8242]
[1741534761019,0.94714,2112.0,2111.9,0.00710429]
[1741534762626,0.00710429,2112.4,2111.9,0.00710429]
[1741534762923,0.00710429,2112.4,2112.0,4.1549]
[1741534762924,0.95409429,2112.4,2112.0,4.1549]
[1741534763116,0.00710429,2112.4,2112.3,3.2078]
[1741534763316,0.00710429,2112.4,2112.3,4.1548]
[1741534763521,0.00710429,2112.4,2112.3,3.2078]
[1741534763922,0.00710429,2112.4,2112.3,44.0078]
[1741534764319,0.00710429,2112.4,2112.3,44.9548]
[1741534764523,0.00710429,2112.4,2112.3,44.0078]
[1741534764927,0.00710429,2112.4,2112.3,44.9548]
[1741534765520,0.00710429,2112.4,2112.3,44.0078]
[1741534765723,0.00710429,2112.4,2112.3,44.9548]
[1741534765924,0.00710429,2112.4,2112.3,48.9548]
[1741534766125,0.00710429,2112.4,2112.3,51.1348]
[1741534766323,0.00710429,2112.4,2112.3,47.1348]
[1741534766527,0.00710429,2112.4,2112.3,54.1198]
[1741534766730,1.57381,2113.0,2112.8,0.94677]
[1741534766931,0.94673,2112.9,2112.8,3.2078]
[1741534768131,0.94696,2112.4,2112.3,5.165]
[1741534768331,0.94696,2112.4,2112.3,2.18]
[1741534768527,0.94697,2112.4,2112.1,3.8299]
[1741534768731,0.94697,2112.4,2112.1,4.77695]
[1741534768945,1.252,2112.6,2112.1,4.77695]
[1741534769129,0.94698,2112.4,2112.1,4.77695]
[1741534769738,1.252,2112.6,2112.1,4.77695]
[1741534769937,0.947,2112.3,2112.1,4.77695]
[1741534771036,0.94698,2112.4,2112.1,4.77696]
[1741534771432,1.252,2112.6,2112.1,3.8299]
[1741534771638,0.6535,2112.6,2112.5,3.2078]
[1741534771843,0.94678,2112.8,2112.6,0.94684]
[1741534772039,0.94678,2112.8,2112.6,1.59914]
[1741534772741,0.6444,2112.9,2112.6,1.59914]
[1741534773046,0.6444,2112.9,2112.6,0.6523]
[1741534773343,0.6444,2112.9,2112.7,0.94679]
[1741534773344,1.59113,2112.9,2112.7,0.94679]
[1741534773543,0.94679,2112.8,2112.6,1.59915]
[1741534773747,0.94667,2113.1,2112.9,0.94673]
[1741534773950,0.94667,2113.1,2112.8,4.15454]
[1741534774142,0.94671,2113.0,2112.8,4.15454]
[1741534774345,0.94671,2113.0,2112.8,4.15456]
[1741534774745,0.94669,2113.0,2112.8,4.15455]
[1741534775139,0.94673,2112.9,2112.8,3.2078]
[1741534778252,1.2418,2113.2,2112.8,4.15455]
[1741534778451,1.2418,2113.2,2112.8,3.2078]
[1741534778752,0.94673,2112.9,2112.8,3.2078]
[1741534780647,1.2418,2113.2,2112.8,3.2078]
[1741534780848,0.94673,2112.9,2112.8,3.2078]
[1741534781346,0.94673,2112.9,2112.6,1.59914]
[1741534781347,0.94682,2112.7,2112.6,0.6523]
[1741534781554,3.60834,2113.2,2112.6,0.6523]
[1741534781755,0.94682,2112.8,2112.6,0.6523]
[1741534782049,0.94682,2112.8,2112.6,1.59914]
[1741534782656,3.60834,2113.2,2112.6,0.6523]
[1741534782855,0.94682,2112.7,2112.6,0.6523]
[1741534783155,0.9468,2112.8,2112.6,1.59915]
[1741534786052,3.60834,2113.2,2112.6,0.6523]
[1741534786263,0.94678,2112.9,2112.7,0.94679]
[1741534786558,0.94678,2112.8,2112.6,1.59914]
[1741534788461,0.94678,2112.8,2112.6,0.6523]
[1741534788854,0.94678,2112.8,2112.6,1.59915]
[1741534789353,0.94678,2112.8,2112.7,0.94682]
[1741534789554,0.94678,2112.8,2112.6,1.59913]
[1741534789763,0.94678,2112.8,2112.7,0.94682]
[1741534789955,0.94676,2112.9,2112.7,0.94682]
[1741534790162,0.94677,2112.9,2112.7,0.94682]
[1741534790362,0.94678,2112.9,2112.7,0.94682]
[1741534790563,0.94678,2112.8,2112.7,0.94682]
[1741534790864,0.94677,2112.9,2112.7,0.94682]
[1741534791065,3.60834,2113.2,2112.7,0.94682]
[1741534791563,0.94681,2112.8,2112.6,1.59914]
[1741534791858,0.94682,2112.7,2112.6,0.6523]
[1741534792158,0.94687,2112.6,2112.5,3.2078]
[1741534792464,0.947,2112.3,2112.2,3.2078]
[1741534792849,0.6006,2112.5,2112.2,3.2078]
[1741534793056,0.94697,2112.4,2112.2,4.15482]
[1741534793763,0.94699,2112.4,2112.2,4.15484]
[1741534796155,0.6006,2112.5,2112.2,4.15482]
[1741534796356,0.94697,2112.4,2112.2,4.15482]
[1741534797358,0.6006,2112.5,2112.2,3.2078]
[1741534797867,0.94699,2112.4,2112.2,4.15485]
[1741534798365,0.94699,2112.4,2112.3,3.2078]
[1741534800666,1.54753,2112.5,2112.3,3.2078]
[1741534800871,1.54753,2112.5,2112.3,4.15476]
[1741534801169,0.94696,2112.4,2112.3,3.2078]
[1741534801767,1.54755,2112.5,2112.3,3.2078]
[1741534802070,0.94696,2112.4,2112.3,3.2078]
[1741534804066,3.2078,2112.8,2112.3,3.2078]
[1741534804369,5.1369,2113.2,2112.6,3.2078]
[1741534804576,7.50347,2113.2,2112.6,3.2078]
[1741534804759,0.94681,2112.8,2112.7,0.00710429]
[1741534806561,5.1369,2113.2,2112.7,0.00710429]
[1741534806873,0.94678,2112.8,2112.7,0.00710429]
[1741534807367,0.94678,2112.8,2112.7,0.64590429]
[1741534807574,0.94678,2112.8,2112.7,0.00710429]
[1741534810570,3.12478,2112.8,2112.7,0.00710429]
[1741534810771,3.75008,2112.8,2112.7,0.00710429]
[1741534811567,1.57208,2112.8,2112.7,0.00710429]
[1741534812471,0.6253,2112.8,2112.7,0.00710429]
[1741534812771,1.57208,2112.8,2112.7,0.00710429]
[1741534816774,1.57208,2112.8,2112.7,4.29e-06]
[1741534816976,5.57208,2112.8,2112.7,4.29e-06]
[1741534818571,8.55308,2112.8,2112.7,4.29e-06]
[1741534819972,4.55308,2112.8,2112.7,4.29e-06]
[1741534820970,8.55308,2112.8,2112.7,4.29e-06]
[1741534821172,4.55308,2112.8,2112.7,4.29e-06]
[1741534821979,8.55308,2112.8,2112.7,4.29e-06]
[1741534824272,12.3443,2112.8,2111.3,11.04245096]
[1741534824474,0.9474,2111.4,2111.3,12.29995096]
[1741534824870,1.2431,2111.8,2111.3,53.09995096]
[1741534825071,0.94739,2111.5,2111.3,53.09995096]
[1741534825275,1.2431,2111.8,2111.3,53.09995096]
[1741534825484,0.9474,2111.4,2111.3,53.09995096]
[1741534827278,0.9474,2111.4,2111.3,42.0575]
[1741534827685,0.9474,2111.4,2111.3,1.2575]
[1741534828879,0.9474,2111.4,2111.3,0.6511]
[1741534829178,0.00710429,2111.6,2111.2,0.00710429]
[1741534829378,0.94745,2111.3,2111.2,0.00710429]
[1741534836484,0.94754,2111.1,2111.0,1.2337]
[1741534836682,0.94772,2110.7,2110.5,22.5238]
[1741534836883,0.94772,2110.7,2110.0,0.4744]
[1741534836884,0.94772,2110.7,2110.6,1.2592]
[1741534838180,0.94781,2110.5,2110.4,40.80710429]
[1741534838784,0.94781,2110.5,2110.4,0.00710429]
[1741534840787,1.54971,2110.5,2110.4,0.00710429]
[1741534841480,8.75751,2110.5,2110.4,4.29e-06]
[1741534842288,7.8097,2110.5,2109.5,0.6305]
[1741534842485,0.94821,2109.6,2109.5,0.6305]
[1741534842789,2.178,2110.0,2109.5,0.6305]
[1741534842985,0.94816,2109.8,2109.5,0.6305]
[1741534843192,2.178,2110.0,2109.7,3.2078]
[1741534843490,0.94803,2110.0,2109.8,0.651]
[1741534843689,0.94808,2109.9,2109.8,0.651]
[1741534844189,0.00710429,2110.1,2109.8,0.651]
[1741534844377,3.2078,2110.4,2109.8,0.651]
[1741534844582,2.8177,2110.6,2110.0,4.15583]
[1741534844583,0.94793,2110.3,2110.0,4.15583]
[1741534844789,2.8177,2110.6,2110.0,4.15583]
[1741534844790,0.94795,2110.2,2110.1,0.6141]
[1741534846190,0.94793,2110.3,2110.1,0.6141]
[1741534846485,0.94794,2110.2,2110.1,0.6141]
[1741534846690,0.94794,2110.2,2110.1,41.4141]
[1741534847583,0.94794,2110.2,2110.1,0.6141]
[1741534848784,0.00710429,2110.4,2110.1,0.6141]
[1741534848991,0.94794,2110.2,2110.1,0.6141]
[1741534849188,0.94792,2110.3,2110.1,0.6141]
[1741534849390,0.94794,2110.2,2110.1,0.6141]
[1741534849886,0.00710429,2110.4,2110.1,0.6141]
[1741534850092,0.94793,2110.3,2110.1,41.4141]
[1741534850686,0.94794,2110.2,2110.1,0.6141]
[1741534851388,0.00710429,2110.4,2110.0,3.2078]
[1741534851587,0.94817,2109.7,2109.4,3.2078]
[1741534851792,0.94817,2109.7,2109.4,6.005]
[1741534851992,0.94817,2109.7,2109.4,3.827]
[1741534852589,0.94817,2109.7,2109.4,0.6192]
[1741534853593,0.94817,2109.7,2109.3,0.6167]
[1741534857494,0.94817,2109.7,2109.1,44.6201]
[1741534857793,0.94817,2109.7,2109.1,3.8201]
[1741534858699,4.94817,2109.7,2109.6,4.29e-06]
[1741534859396,0.94817,2109.7,2109.6,4.29e-06]
[1741534862294,0.6384,2110.0,2109.6,4.29e-06]
[1741534862888,0.94817,2109.7,2109.6,4.29e-06]
[1741534864298,0.6384,2110.0,2109.6,4.29e-06]
[1741534864498,0.94817,2109.7,2109.6,4.29e-06]
[1741534865696,1.55077,2109.7,2109.6,4.29e-06]
[1741534866399,3.72977,2109.7,2109.6,4.29e-06]
[1741534866605,4.33367,2109.7,2109.6,4.29e-06]
[1741534867597,8.33367,2109.7,2109.6,4.29e-06]
[1741534868196,4.33367,2109.7,2109.6,4.29e-06]
[1741534868593,8.33367,2109.7,2109.6,4.29e-06]
[1741534869499,4.33367,2109.7,2109.6,4.29e-06]
[1741534870491,8.33367,2109.7,2109.6,4.29e-06]
[1741534871404,4.33367,2109.7,2109.6,4.29e-06]
[1741534871600,8.33367,2109.7,2109.6,4.29e-06]
[1741534871902,4.33367,2109.7,2109.6,4.29e-06]
[1741534872905,3.72977,2109.7,2109.6,4.29e-06]
[1741534874299,3.72877,2109.7,2109.6,4.29e-06]
[1741534877702,3.72877,2109.7,2108.8,3.2078]
[1741534877703,6.7806,2109.7,2108.8,3.2078]
[1741534877901,0.94853,2108.9,2108.8,0.6398]
[1741534879501,0.94862,2108.7,2108.6,0.00710429]
[1741534879803,0.94862,2108.7,2108.6,4.29e-06]
[1741534880507,4.94862,2108.7,2108.6,4.29e-06]
[1741534880701,0.94862,2108.7,2108.6,4.29e-06]
[1741534887306,3.12662,2108.7,2108.6,4.29e-06]
[1741534888606,3.2078,2108.9,2108.6,4.29e-06]
[1741534888807,2.179,2109.0,2108.6,4.29e-06]
[1741534889010,2.179,2109.0,2108.6,1.26060429]
[1741534889312,0.94859,2108.8,2108.6,1.26060429]
[1741534889503,2.179,2109.0,2108.6,1.26060429]
[1741534890005,0.94862,2108.8,2108.6,1.26060429]
[1741534890211,0.94862,2108.7,2108.6,1.26060429]
[1741534890917,0.94859,2108.8,2108.6,6.20926429]
[1741534891222,0.00710429,2109.1,2108.9,0.94852]
[1741534891514,0.95554429,2109.1,2109.0,4.4732]
[1741534891704,0.00710429,2109.1,2109.0,4.4732]
[1741534891907,0.94843,2109.2,2109.0,8.4732]
[1741534892108,0.94844,2109.1,2109.0,4.4732]
[1741534892311,2.37054,2109.6,2109.0,8.4732]
[1741534892518,0.94844,2109.1,2109.0,4.4732]
[1741534893019,0.94844,2109.1,2109.0,8.4732]
[1741534893515,0.94843,2109.2,2109.0,8.4732]
[1741534893709,0.00710429,2109.3,2109.0,4.4732]
[1741534893911,0.95547429,2109.3,2109.1,0.94842]
[1741534894111,0.94841,2109.2,2109.0,4.4732]
[1741534894421,0.94844,2109.1,2109.0,4.4732]
[1741534895015,0.94841,2109.2,2109.0,5.116]
[1741534895215,0.00710429,2109.3,2109.0,5.116]
[1741534895417,0.94844,2109.1,2109.0,5.116]
[1741534896612,0.94844,2109.1,2109.0,4.4706]
[1741534900416,0.94844,2109.1,2109.0,3.8278]
[1741534900620,0.94844,2109.1,2109.0,0.62]
[1741534904315,0.94857,2108.8,2108.7,3.8206]
[1741534904510,0.94862,2108.7,2108.6,4.29e-06]
[1741534906022,1.54332,2108.7,2108.6,4.29e-06]
[1741534907217,5.54332,2108.7,2108.6,4.29e-06]
[1741534907610,0.94907,2107.7,2107.6,3.8037]
[1741534907813,0.94907,2107.7,2107.6,44.6037]
[1741534908223,0.94907,2107.7,2107.6,3.2078]
[1741534909022,0.94916,2107.5,2107.4,0.00710429]
[1741534909420,0.94925,2107.3,2107.2,11.04245096]
[1741534909626,6.33505,2107.3,2107.2,8.30201096]
[1741534909816,0.94956,2106.6,2106.5,8.30201096]
[1741534910319,8.15736,2106.6,2106.5,4.24095096]
[1741534910514,8.15736,2106.6,2106.5,3.03863096]
[1741534910708,8.15736,2106.6,2106.5,1.69760096]
[1741534910914,0.94961,2106.5,2106.4,12.93608774]
[1741534911112,3.12761,2106.5,2106.4,11.82117774]
[1741534911314,7.12761,2106.5,2106.4,10.79581774]
[1741534911519,3.12761,2106.5,2106.4,10.79581774]
[1741534911821,7.12761,2106.5,2106.4,10.79581774]
[1741534912022,7.12761,2106.5,2106.4,9.76610774]
[1741534912420,7.12761,2106.5,2106.4,8.58151774]
[1741534912621,7.12761,2106.5,2106.4,6.20139774]
[1741534913022,7.12761,2106.5,2106.4,4.80649774]
[1741534913326,7.12761,2106.5,2106.4,3.73181774]
[1741534913527,7.12761,2106.5,2106.4,2.76123774]
[1741534913823,10.10861,2106.5,2106.3,0.00710429]
[1741534914025,5.159,2106.5,2105.5,3.2078]
[1741534914325,3.2078,2106.4,2105.9,3.2078]
[1741534914525,2.178,2106.3,2105.9,3.2078]
[1741534914722,3.2078,2106.4,2105.6,3.2078]
[1741534914922,2.179,2106.3,2105.6,3.2078]
[1741534915121,0.94997,2105.7,2105.6,3.2078]
[1741534915627,2.179,2105.9,2105.5,3.2078]
[1741534916122,2.179,2105.9,2105.4,0.00712132]
[1741534916123,2.18612132,2105.9,2105.6,3.2078]
[1741534916325,0.95001,2105.6,2105.4,0.00712132]
[1741534916526,3.2078,2105.8,2105.1,3.2078]
[1741534916724,0.9501,2105.5,2105.2,40.8]
[1741534916924,3.2078,2105.8,2105.2,40.8]
[1741534917326,0.95009,2105.5,2105.2,40.8]
[1741534917527,5.3868,2105.5,2105.3,0.00477165]
[1741534917834,0.9501,2105.4,2105.3,0.00477165]
[1741534918324,0.95051,2104.5,2104.4,0.37829605]
[1741534918720,2.179,2104.7,2104.2,44.0078]
[1741534918923,0.95048,2104.6,2104.4,0.05141743]
[1741534919221,0.95051,2104.5,2104.4,0.05141743]
[1741534919417,0.95081,2103.9,2103.6,3.2078]
[1741534919624,2.19,2104.0,2103.4,3.2078]
[1741534919824,3.2078,2103.9,2103.4,44.0078]
[1741534920131,3.2078,2103.9,2103.4,3.2078]
[1741534920325,3.2078,2103.9,2103.3,0.95105]
[1741534920535,3.2078,2103.9,2103.6,0.05144969]
[1741534920726,3.2078,2104.5,2103.6,3.25924969]
[1741534920927,0.00712132,2104.7,2104.0,3.2078]
[1741534921121,0.00712132,2104.7,2104.6,4.15827]
[1741534921324,0.00712132,2104.7,2104.6,8.15827]
[1741534921535,2.204,2105.3,2105.2,0.95019]
[1741534921729,3.2078,2105.5,2104.9,3.2078]
[1741534922125,0.95018,2105.3,2104.9,3.2078]
[1741534922326,3.2078,2105.1,2104.6,3.25924969]
[1741534922631,3.2078,2105.1,2104.4,0.65772132]
[1741534922632,4.15813,2104.9,2104.8,0.05144969]
[1741534922829,0.95033,2104.9,2104.8,0.05144969]
[1741534923336,0.95033,2104.9,2104.8,0.0888218]
[1741534923534,0.00712132,2105.1,2104.8,0.0888218]
[1741534924336,0.00712132,2105.1,2104.9,4.8914518]
[1741534924527,3.2078,2105.5,2104.9,3.9411218]
[1741534924832,2.225,2105.8,2105.2,3.2078]
[1741534924833,0.95005,2105.6,2105.2,3.2078]
[1741534925033,2.225,2105.8,2105.2,4.15797]
[1741534925236,3.2078,2106.0,2105.2,4.15797]
[1741534925444,0.94998,2105.7,2105.6,0.0888218]
[1741534926437,0.00712132,2105.8,2105.6,0.0888218]
[1741534926634,0.94997,2105.7,2105.6,0.0888218]
[1741534926835,0.00712132,2105.8,2105.6,0.0888218]
[1741534927036,3.2078,2106.0,2105.9,0.94988]
[1741534927245,3.2078,2106.4,2105.8,5.4318]
[1741534927440,0.94974,2106.2,2106.1,0.0888218]
[1741534928442,3.21492132,2106.4,2106.1,0.0888218]
[1741534928648,0.94974,2106.2,2106.1,0.0888218]
[1741534929443,0.94972,2106.3,2106.1,0.0888218]
[1741534929637,3.21492132,2106.4,2106.1,0.0888218]
[1741534929638,0.94974,2106.2,2106.1,0.0888218]
[1741534930233,3.21492132,2106.4,2106.1,0.0888218]
[1741534930445,0.94971,2106.3,2106.2,0.0888218]
[1741534931439,2.37429,2106.3,2105.7,0.6496]
[1741534931642,0.94992,2105.8,2105.7,0.6496]
[1741534931839,3.2078,2106.0,2105.7,0.6496]
[1741534932647,3.2078,2106.0,2105.8,0.94989]
[1741534932843,4.15765,2106.0,2105.7,3.8574]
[1741534933039,3.2078,2106.0,2105.9,0.94988]
[1741534933244,0.00712132,2106.4,2105.9,6.227]
[1741534933436,0.00712132,2106.4,2106.3,3.2078]
[1741534933640,0.00712132,2106.4,2106.2,3.2078]
[1741534934042,0.00712132,2106.4,2106.3,0.9497]
[1741534934345,3.2078,2107.1,2106.3,2.23]
[1741534934545,0.9494,2107.0,2106.6,3.2078]
[1741534934734,3.2078,2107.1,2106.6,3.2078]
[1741534934935,0.94939,2107.0,2106.6,3.2078]
[1741534935140,3.2078,2107.1,2106.6,3.2078]
[1741534935342,0.95654132,2107.0,2106.6,3.21492132]
[1741534935648,0.00712132,2107.0,2106.6,3.21492132]
[1741534935942,0.00712132,2107.0,2106.9,0.94943]
[1741534936148,0.94934,2107.1,2106.9,3.2078]
[1741534936649,0.94927,2107.3,2107.0,0.94937]
[1741534936844,3.2078,2107.4,2106.9,4.15721]
[1741534936845,0.94931,2107.2,2106.9,4.15721]
[1741534937246,0.00712132,2107.3,2106.9,3.2078]
[1741534937449,0.94952,2106.7,2106.6,0.00712132]
[1741534937749,5.58115,2107.1,2106.6,0.00712132]
[1741534937750,0.94951,2106.8,2106.6,0.00712132]
[1741534937949,3.2078,2107.1,2106.6,0.00712132]
[1741534938344,0.94952,2106.7,2106.6,0.00712132]
[1741534938654,3.2078,2107.1,2106.6,0.00712132]
[1741534939246,0.9494,2107.0,2106.7,0.9495]
[1741534939449,3.2078,2107.1,2107.0,0.94938]
[1741534939745,0.00712132,2107.3,2106.8,5.4428]
[1741534939941,0.00712132,2107.3,2107.1,3.2078]
[1741534940143,0.95639132,2107.3,2107.1,3.2078]
[1741534940439,0.00712132,2107.3,2107.1,3.2078]
[1741534940643,0.00712132,2107.3,2107.2,0.94929]
[1741534940843,0.00712132,2107.3,2107.1,3.2078]
[1741534940844,0.95637132,2107.3,2107.1,3.2078]
[1741534941045,0.95639132,2107.3,2107.1,3.2078]
[1741534941248,0.00712132,2107.3,2107.1,4.15714]
[1741534941750,0.00712132,2107.3,2107.1,3.2078]
[1741534941947,0.94929,2107.2,2107.1,3.2078]
[1741534942148,0.94938,2107.0,2106.9,0.6214]
[1741534942555,3.2078,2107.2,2106.9,0.6214]
[1741534942748,0.94937,2107.1,2106.9,0.6214]
[1741534943146,3.2078,2107.2,2106.9,0.6214]